Cogmind - Beta 14 *** ADVENTURER MODE // 2024.08.21 @ 07:29:50 Player: Ms. V3-11A Result: Destroyed by Y-54 Guardian with Flak Gun Performance ------------- Evolutions (0) 0 Regions Visited (3) 600 Robots Destroyed (28) 140 Value Destroyed (657) 657 Prototype IDs (2) 40 Alien Tech Used (0) 0 Bonus (0) 0 TOTAL SCORE: 1437 Bonus ------- None Cogmind --------- Core Integrity 0/250 Matter 215/300 Energy 250/250 System Corruption 0% Temperature Cool (0) Movement Treading (160) Location -7/Recycling Parts ------- > --- POWER (1) -------- Ion Engine > --- PROPULSION (2) --- Light Treads Light Treads > --- UTILITY (2) ------ Small Storage Unit Subdweller Optics > --- WEAPON (2) ------- Heavy Assault Rifle Makeshift Shrapnel Gun > --- INVENTORY (8) ---- Light Ion Engine Subdweller Power Source Light Treads Light Treads Large Matter Pod (150) Structural Scanner Subdweller Laser Subdweller Machine Gun Peak State ------------ > --- POWER ------------ Ion Engine > --- PROPULSION ------- Light Treads Light Treads > --- UTILITY ---------- Small Storage Unit Subdweller Optics > --- WEAPON ----------- Heavy Assault Rifle Makeshift Shrapnel Gun > --- INVENTORY -------- Light Ion Engine Subdweller Power Source Light Treads Light Treads Large Matter Pod Structural Scanner Subdweller Laser Subdweller Machine Gun [Rating: 13] Favorites ----------- Power Ion Engine Engine Ion Engine Propulsion Light Treads Treads Light Treads Leg Aluminum Leg Utility Small Storage Unit Device Improved Heat Sink Storage Small Storage Unit Weapon Heavy Assault Rifle Energy Gun Medium Laser Ballistic Gun Heavy Assault Rifle Build | -11 -10 -10 -7 ------- Run | Yrd Mat Sub Rec Slots Evolved . | . . . . Power . | . . . . Propulsion . | . . . . Utility . | . . . . Weapon . | . . . . Parts Attached 11 | . 7 4 . Power 1 | . 1 . . Engine 1 | . 1 . . Core . | . . . . Reactor . | . . . . Propulsion 4 | . 3 1 . Treads 3 | . 2 1 . Leg 1 | . 1 . . Wheel . | . . . . Hover . | . . . . Flight . | . . . . Utility 2 | . 1 1 . Device 2 | . 1 1 . Storage . | . . . . Processor . | . . . . Hackware . | . . . . Protection . | . . . . Artifact . | . . . . Weapon 4 | . 2 2 . Energy Gun . | . . . . Energy Cannon . | . . . . Ballistic Gun 4 | . 2 2 . Ballistic Cannon . | . . . . Launcher . | . . . . Special Weapon . | . . . . Impact Weapon . | . . . . Slashing Weapon . | . . . . Piercing Weapon . | . . . . Special Melee Weapon . | . . . . Unidentified Prototypes . | . . . . Parts Lost 2 | . . 2 . Power . | . . . . Propulsion 1 | . . 1 . Utility . | . . . . Weapon 1 | . . 1 . Highest Loss Streak 2 | . . 2 . To Critical Strikes . | . . . . Average Slot Usage (%) 98 | . 97 99 100 Engine 14 | . 14 14 14 Treads 18 | . 10 28 28 Leg 9 | . 17 . . Device 12 | . 12 14 14 Storage 14 | . 14 14 14 Energy Gun 8 | . 14 . . Ballistic Gun 19 | . 13 27 28 Peak Build Rating 13 | 6 11 13 13 Average Rating 10 | 6 9 11 13 On Entrance 9 | 6 6 11 13 Naked Turns . | . . . . Heaviest Build 18 | 13 17 18 17 Greatest Support 40 | 20 40 40 40 Greatest Overweight (x) . | . . . . Average Overweight (x) . | . . . . Largest Inventory Capacity 8 | 8 8 8 8 Average Capacity 8 | 8 8 8 8 Most Carried 8 | 5 8 8 8 Average Carried 7 | 4 7 7 8 Final Capacity 8 | 8 8 8 8 Final Carried 8 | 4 7 8 8 Class Distribution -------------------- 100% | Mutant Dominant Class ---------------- Mutant | -10/Materials Mutant | -10/Subcaves Mutant | -7/Recycling Resources | -11 -10 -10 -7 ----------- Run | Yrd Mat Sub Rec Matter Collected 617 | 179 295 143 . Remotely . | . . . . Salvage Created 1006 | . 736 235 35 Parts 48 | . 32 13 3 Haulers Intercepted 2 | . 2 . . Recyclers Shooed 1 | . 1 . . Parts Field Recycled . | . . . . Retrieved Matter . | . . . . Parts Self-Destructed 14 | . . 14 . Prevented . | . . . . Kills | -11 -10 -10 -7 ------- Run | Yrd Mat Sub Rec Combat Hostiles Destroyed 20 | . 12 7 1 Guns 20 | . 12 7 1 Classes Destroyed 9 | . 6 3 . Worker 1 | . 1 . . Hauler 2 | . 2 . . Recycler 2 | . 2 . . Turret 2 | . . 2 . Watcher 1 | . 1 . . Swarmer 8 | . 3 5 . Grunt 9 | . 9 . . Sentry 2 | . . 1 1 Subdweller 1 | . . 1 . Best Kill Streak 4 | . 4 4 1 Combat Bots Only 4 | . 3 4 1 Max Kills in Single Turn 2 | . 2 1 1 Gunslinging . | . . . . Exploded . | . . . . Melee . | . . . . Uniques/NPCs Destroyed . | . . . . Combat | -11 -10 -10 -7 -------- Run | Yrd Mat Sub Rec Hostile Shots Fired 227 | . 58 100 69 Missed 84 | . 16 41 27 Damage Taken 1233 | . 368 674 191 Core 253 | . 89 139 25 Absorbed by Shields . | . . . . Ignored by Resistances 331 | . 117 147 67 Core Remaining (%) 100 | 100 . . . Volleys Fired 80 | . 47 24 9 Largest 2 | . 2 2 2 Hottest 90 | . 90 46 47 Shots Fired 156 | . 94 47 15 Gun 156 | . 94 47 15 Cannon . | . . . . Launcher . | . . . . Special . | . . . . Kinetic 80 | . 18 47 15 Thermal 76 | . 76 . . Explosive . | . . . . Electromagnetic . | . . . . Robot Hit Streak 32 | . 25 30 32 Robot Miss Streak 3 | . 1 3 2 Penetration Max . | . . . . Secondary Targets 5 | . 4 1 . Max Gunslinging Chain 1 | . 1 1 . Shots Hit Robots 133 | . 79 39 15 Core Hits 52 | . 33 13 6 Critical Kills . | . . . . Critical Parts Destroyed 1 | . . . 1 Critical Strikes 6 | . 5 . 1 Burn 5 | . 5 . . Destroy 1 | . . . 1 Melee Attacks . | . . . . Impact . | . . . . Slashing . | . . . . Piercing . | . . . . Sneak Attacks . | . . . . Combat Hostiles . | . . . . Follow-up Attacks . | . . . . Damage Inflicted 1908 | . 1035 589 284 Guns 1908 | . 1035 589 284 Cannons . | . . . . Explosions . | . . . . Melee . | . . . . Ramming . | . . . . Kinetic 1121 | . 248 589 284 Thermal 787 | . 787 . . Explosive . | . . . . Electromagnetic . | . . . . Impact . | . . . . Slashing . | . . . . Piercing . | . . . . Highest Corruption . | . . . . Average Corruption . | . . . . Corruption Purged . | . . . . Corruption Blocked . | . . . . Overload Shots . | . . . . Overflow Damage . | . . . . Projectiles . | . . . . Explosions . | . . . . Melee . | . . . . Knockbacks . | . . . . Impact . | . . . . Kinetic . | . . . . Secondary . | . . . . Self-Inflicted Damage . | . . . . Shots . | . . . . Rammed . | . . . . Targets Rammed . | . . . . Kicked . | . . . . Crushed . | . . . . Highest Temperature 259 | . 259 . 15 Average Temperature 81 | . 91 . 7 Received Heat Transfer 489 | . 228 213 48 Siege Activations . | . . . . Robots Corrupted . | . . . . Combat Hostiles . | . . . . Parts Fried . | . . . . Impact Corruptions . | . . . . Robots Melted . | . . . . Combat Hostiles . | . . . . Parts Melted 3 | . 3 . . Heat Transferred 2390 | . 2390 . . Parts Sabotaged . | . . . . Parts Stolen . | . . . . Parts Stripped . | . . . . Power Chain Reactions . | . . . . Alert | -11 -10 -10 -7 ------- Run | Yrd Mat Sub Rec Peak Influence 237 | . 237 . 26 Initial 6 | . . . 6 Average 75 | . 78 . 14 Maximum Alert Level 1 | . 1 . . Low Security (%) 98 | 100 98 . 100 Level 1 1 | . 1 . . Level 2 . | . . . . Level 3 . | . . . . Level 4 . | . . . . Level 5 . | . . . . High Security . | . . . . Max Security . | . . . . Squads Dispatched 2 | . 2 . . Investigation 2 | . 2 . . Extermination . | . . . . Reinforcement . | . . . . Assault . | . . . . Garrison . | . . . . Intercept . | . . . . Searches Triggered . | . . . . Construction Impeded . | . . . . Haulers Reinforced . | . . . . Active Scanning Responses . | . . . . Cargo Convoy Interrupts . | . . . . Stealth | -11 -10 -10 -7 --------- Run | Yrd Mat Sub Rec Distress Signals 1 | . 1 . . Communications Jammed . | . . . . Distress Signals . | . . . . Times Spotted 32 | . 19 11 2 Peak Tracking Total 6 | . 4 6 1 Tactical Retreats 3 | . . 3 . Traps | -11 -10 -10 -7 ------- Run | Yrd Mat Sub Rec Traps Triggered 9 | . 2 7 . Indirectly . | . . . . Trap Hack Attempts . | . . . . Triggered . | . . . . Disarmed . | . . . . Reprogrammed . | . . . . Reused . | . . . . Traps Extracted . | . . . . Installed . | . . . . Triggered . | . . . . Machines | -11 -10 -10 -7 ---------- Run | Yrd Mat Sub Rec Machines Disabled . | . . . . Max in Single Turn . | . . . . Machines Repaired . | . . . . Machines Dismantled . | . . . . Machines Sabotaged . | . . . . Overloaded Fab Kills . | . . . . Hacking | -11 -10 -10 -7 --------- Run | Yrd Mat Sub Rec Machines Accessed 9 | . 9 . . Terminals 8 | . 8 . . Fabricators . | . . . . Repair Stations . | . . . . Recycling Units 1 | . 1 . . Scanalyzers . | . . . . Garrison Access . | . . . . Total Hacks 22 | . 22 . . Successful 17 | . 17 . . Failed 5 | . 5 . . Catastrophic 1 | . 1 . . Database Lockouts . | . . . . Manual 18 | . 18 . . Terminals 21 | . 21 . . Fabricators . | . . . . Repair Stations . | . . . . Recycling Units 1 | . 1 . . Scanalyzers . | . . . . Garrison Access . | . . . . Terminal Hacks 10 | . 10 . . Robot Analysis 3 | . 3 . . Prototype ID Bank 1 | . 1 . . Locate Traps 5 | . 5 . . Zone Layout 1 | . 1 . . Fabricator Hacks . | . . . . Repair Station Hacks . | . . . . Recycling Unit Hacks 1 | . 1 . . Retrieve Components 1 | . 1 . . Scanalyzer . | . . . . Garrison Access Hacks . | . . . . Unauthorized Hacks 6 | . 6 . . Terminals 6 | . 6 . . Skim 6 | . 6 . . Fabricators . | . . . . Repair Stations . | . . . . Recycling Units . | . . . . Scanalyzers . | . . . . Garrison Access . | . . . . Data Cores Recovered . | . . . . Used . | . . . . Hacking Detections 8 | . 8 . . Full Trace Events . | . . . . Feedback Events . | . . . . Feedback Blocked . | . . . . Robot Schematics Acquired . | . . . . Robots Built . | . . . . Authchips . | . . . . Time . | . . . . Total Robot Build Rating . | . . . . Part Schematics Acquired . | . . . . Parts Built . | . . . . Authchips . | . . . . Time . | . . . . Total Part Build Rating . | . . . . Parts Repaired . | . . . . Time . | . . . . Parts Recycled . | . . . . Recycled Matter . | . . . . Retrieved Matter . | . . . . Retrieved Components . | . . . . Parts Scanalyzed . | . . . . Part Schematics Acquired . | . . . . Parts Damaged . | . . . . Bothacking | -11 -10 -10 -7 ------------ Run | Yrd Mat Sub Rec Used RIF Installer . | . . . . Robots Hacked . | . . . . Non-combat . | . . . . Combat . | . . . . Robot Hacks Applied . | . . . . Relay Couplers Released . | . . . . Fabnet Peak Effective % . | . . . . Robots Rewired . | . . . . Allies Hacked . | . . . . Hacks Repelled . | . . . . Allies | -11 -10 -10 -7 -------- Run | Yrd Mat Sub Rec Total Allies . | . . . . Largest Group . | . . . . Highest-Rated Group . | . . . . Highest-Rated Ally . | . . . . Total Orders . | . . . . Ally Attacks . | . . . . Total Damage . | . . . . Kills . | . . . . Allies Corrupted . | . . . . Allies Melted . | . . . . Intel | -11 -10 -10 -7 ------- Run | Yrd Mat Sub Rec Robot Analysis Total 3 | . 3 . . Derelict Logs Recovered 1 | . . 1 . Drone Launches . | . . . . Drone Recoveries . | . . . . Exploration | -11 -10 -10 -7 ------------- Run | Yrd Mat Sub Rec Turns Passed 2471 | 2 1400 985 84 Spaces Moved 1383 | 1 783 562 37 Core . | . . . . Treads 790 | . 191 562 37 Legs 593 | 1 592 . . Wheels . | . . . . Hover . | . . . . Flight . | . . . . Fastest Speed 120 | 120 120 160 160 Average Speed 142 | 120 129 160 160 Slowest Speed 160 | 120 160 160 160 Overloaded Moves . | . . . . Propulsion Burnouts . | . . . . Robots Hopped . | . . . . Cave-ins Triggered . | . . . . Exploration Rate (%) 35 | 2 97 29 14 Regions Visited 3 Branch Regions 2 Pre-discovered Areas 3 | . 2 1 . Known Exits Taken 1 | . 1 . . Unknown Exits Taken 2 | 1 . 1 . Scrap Searched . | . . . . Spaces Dug . | . . . . Terrain Destroyed . | . . . . Melee . | . . . . Projectile . | . . . . AOE . | . . . . Terrain Rammed . | . . . . Walls Destroyed . | . . . . Machines Disabled . | . . . . Actions | -11 -10 -10 -7 --------- Run | Yrd Mat Sub Rec Total 1719 | 2 1076 594 47 Wait 223 | . 222 . 1 Move 1380 | . 782 561 37 Hop . | . . . . Pick Up 11 | . 8 3 . Fast Attach 7 | . 5 2 . Attach 3 | . 1 2 . Detach . | . . . . Swap 1 | . 1 . . Drop 14 | 2 10 2 . Fire 80 | . 47 24 9 Melee . | . . . . Ram . | . . . . Kick . | . . . . Crush . | . . . . Escape Stasis . | . . . . Rewire . | . . . . Trap . | . . . . Miscellaneous . | . . . . Route ------- -11/Scrapyard -10/Materials (discovered 5 exits: *Mat x3 / [*Min] / *Sub) -10/Subcaves (discovered 3 exits: *Mat x2 / [*Rec]) -7/Recycling History --------- Turn | Location | Event 3 | -11/Scrapyard | Discovered new exit (range 0) 3 | -11/Scrapyard | Entered Materials 293 | -10/Materials | Discovered new exit (range 19) 306 | -10/Materials | Build established: Mutant 312 | -10/Materials | Discovered new exit (range 5) 380 | -10/Materials | Identified exit to Subcaves 459 | -10/Materials | Learned Storage emergency access door positions 467 | -10/Materials | Discovered new exit (range 13) 529 | -10/Materials | Identified exit to Materials 589 | -10/Materials | Learned location of Mines (-9) 707 | -10/Materials | Learned location of Mines (-10) 852 | -10/Materials | Learned location of 2 exits from Materials 1403 | -10/Materials | Entered Subcaves 1404 | -10/Subcaves | Identified exit to Materials 1752 | -10/Subcaves | Core integrity fell below 50% 1761 | -10/Subcaves | A swath of the cavern ceiling suddenly collapsed 1837 | -10/Subcaves | Shifting Twisted Machinery released Sub. Power Source 1901 | -10/Subcaves | Discovered new exit (range 12) 1918 | -10/Subcaves | Core integrity fell below 20% 1933 | -10/Subcaves | Discovered exit to Materials (range 13) 1937 | -10/Subcaves | Shifting Twisted Machinery released Sub. Laser 2121 | -10/Subcaves | Shifting Twisted Machinery released Mak. Shrapnel Gun 2125 | -10/Subcaves | Learned location of Zion (-7) 2151 | -10/Subcaves | Shifting Twisted Machinery released Battle Rifle 2388 | -10/Subcaves | Entered Recycling 2472 | -7/Recycling | Destroyed by Y-54 Guardian with Flak Gun Last Messages --------------- Mak. Shrapnel Gun falls loose from the Twisted Machinery. 02121_ Beam Rifle fries itself beyond repair. 02125_ Acquired derelict log, extracted data. World map updated: -7/Zion. 02135_ Dropped Hvy. Assault Rifle. 02135_ Acquired Mak. Shrapnel Gun. Battle Rifle falls loose from the Twisted Machinery. 02193_ Subatomizers dissect the Hvy. Assault Rifle. 02300_ Acquired 15 matter. 02372_ Acquired 14 matter. 02383_ Acquired 30 matter. LOCATION=UNKNOWN GOAL=ESCAPE 02420_ Y-54 Guardian springs to life. 02437_ Y-54 Guardian destroyed. 02438_ R-06 Scavenger collects Flak Gun. 02441_ R-06 Scavenger collects Imp. Heat Sink. 02466_ Y-54 Guardian springs to life. 02469_ Y-54 Guardian suffers critical hit (Destroy). 02469_ Destroyed Imp. Deuterium Engine. Map ----- +----------------------------------------------------+ | ????? ?????????????????????????????????????????? | | ????? ????????????????????????????????????????? | | ????? ????????????????????????????????????????? | | ????? ????????????????????????????????????????? | | ????? ?????????????????????????????????????????? | | ????? ?????????????????????????????????????????? | | ????? ?????????????????????????????????????????? | | ????? ?????????????????????????????????????????? | | ?????# #?????????????????????????????????????????? | | ?????# #?????????????????????????????????????????? | | ?????# #?????????????????????????????????????????? | | ?????# #?????????????????????????????????????????? | | ###### #???###???????????????????????????????????? | | # ##### #################???????????????????? | | # % ?????????????????? | | + ?????????????????? | | # ?????????????????? | | # #####+######### #??????????????????????? | | ## #### #??# #??????????????????????? | | ## #?# #??# #??????????????????????? | | ## #?## #### #??????????????????????? | | ## #??# + #??????????????????????? | | ## #??# # #??????????????????????? | | ## #??# # #??????????????????????? | | ## #??# + #??????????????????????? | | # #??# #### @#??????????????????????? | | ## #??# #??# #??????????????????????? | | ?# #??# #########!! #??????????????????????? | | ?#####??##????????#!! ?????????????????????? | | #??????????????????#!! ???????????????????? | | ???????????????????### ??????????????????? | | ?????????????????????# ????????????????? | | ?????????????????????# ???????????????? | | ?????????????????????# ?????????????? | | ?????????????????????# ???????????? | | ?????????????????????# ??????????? | | ?????????????????????# ??????????? | | ????????????????????? ??????????? | | ????????????????????? ??????????? | | ?????????????????????Y"#Y###########"Y"??????????? | | ????????????????????"""?#????????????????????????? | | ?????????????????????##??????????????????????????? | | | | | | | | | | | | | | | | | +----------------------------------------------------+ Best States ------------- Heat Dissipation 39 Energy Generation 10 Energy Capacity 250 Matter Stores 300 Matter Capacity 300 Sight Range 21 Terrain Scan Density 10 Resistance: KI 20 Resistance: TH 20 Resistance: EX 20 Resistance: EM 20 Resistance: I 20 Resistance: S 20 Resistance: P 20 Evasion (%) 55 Recoil Reduction 2 Offensive Hacking 10 Item Schematics ----------------- None Robot Schematics ------------------ None Fabricated ------------ Nothing Alien Tech Used ----------------- None Achievements -------------- None Challenges ------------ None Game ------ Seed DeepCouplerGreatsword Manual? 0 Play Time 00:13:52 Cumulative 294.1 hours Start 2024.08.21 @ 07:15:55 End 2024.08.21 @ 07:29:50 Sessions 1 Manual Loads 0 Difficulty Adventurer Special Mode None Game No. 223 Rogue 63 Adventurer 134 Explorer 26 Win Type - Total 1 Types 1/0/0/0/0/0/0/0/0 Lore% 75 Gallery% 70 Achievement% 68 Wizard Run 0 Options --------- Layout 2 ASCII 0 Keyboard 0 Movement Mouse Keybinds 0 Fullscreen 0 Font 18/CogNarrow Map View 64x51 Zoom Use 0% Tactical HUD 1 Map Filters NONE Filters BRIGHTNESS(115)|SATURATION(100)|LOW_CONTRAST(0,16,30) Steam 1 RUN: 4eb3cd79-ce40-46b1-a621-42d7d3336ae7